[Event "15th Paleochora Open 2022"]
[Site "Paleochora"]
[Date "2022.07.17"]
[Round "1.13"]
[White "Grigorov, Grigor"]
[Black "Kalousek, Zdenek"]
[Result "1-0"]
[ECO "D03"]
[WhiteElo "2511"]
[BlackElo "2019"]
[Annotator "TA"]
[PlyCount "71"]
[EventDate "2022.07.17"]
[EventType "swiss"]
[EventCountry "GRE"]
[SourceTitle "playchess.com"]
[Source "ChessBase"]
[SourceQuality "1"]
[TimeControl "40/5400+30:900+30"]

{[%evp 12,71,4,9,8,3,0,6,6,0,0,0,0,0,5,0,10,-1,2,0,29,27,46,17,38,43,32,30,40,55,46,22,26,14,115,51,249,156,317,310,314,304,289,156,554,327,314,316,314,275,293,301,404,348,878,721,850,826,2185,2006,1792,1447]} 1. d4 {[%emt 0:00:04]} Nf6 {[%emt 0:00:04]} 2. Nf3 {[%emt 0:00:06]} g6 {[%emt 0:00:05]} 3. Bg5 {[%emt 0:00:12]} Bg7 {[%emt 0:00:03]} 4. Nbd2 {[%emt 0:00:17]} d5 {[%emt 0:00:12]} 5. e3 {[%emt 0:00:08]} O-O {[%emt 0:00:06]} 6. Be2 {[%emt 0:00:05]} c5 {[%emt 0:04:29]} 7. c3 {[%emt 0:00:07]} cxd4 {[%emt 0:08:00] 7...b6 is becoming the main line. D03: 1 d4 d5 2 Nf3 Nf6 3 Bg5, including Torre Attack with early ...d5.} 8. cxd4 {[%emt 0:00:20]} Nc6 {[%emt 0:01:17]} 9. O-O {[%emt 0:00:19]} h6 {[%emt 0:04:08] The position is equal.} 10. Bh4 {[%emt 0:00:51]} g5 {[%emt 0:02:38]} 11. Bg3 {[%emt 0:00:07]} Nh5 {[%emt 0:00:57]} 12. Rc1 {[%emt 0:02:01]} Nxg3 {[%emt 0:04:33]} 13. hxg3 {[%emt 0:00:07]} Qd6 {[%emt 0:11:58] [#]} 14. Qb3 $146 {[%emt 0:09:46]} ({Predecessor:} 14. a3 f5 15. b4 a5 16. b5 Nd8 17. a4 Bd7 18. Qb3 Nf7 19. Rc5 e6 20. b6 {1-0 (40) Sasikiran,K (2611)-Volokitin,A (2493) Lausanne 2001}) 14... e6 {[%emt 0:15:44]} 15. g4 {[%emt 0:14:29]} f5 {[%emt 0:07:50]} 16. gxf5 {[%emt 0:00:33]} Rxf5 {[%emt 0:00:35]} 17. Bd3 {[%emt 0:01:54]} Rf7 {[%emt 0:00:03]} 18. Bg6 {[%emt 0:01:56]} Rf6 {[%emt 0:07:45]} 19. Bb1 {[%emt 0:03:08]} g4 {[%emt 0:03:17]} 20. Nh4 {[%emt 0:01:39] Hoping for Qd3.} h5 $1 {[%emt 0:05:57]} 21. f4 $36 {[%emt 0:04:00][%mdl 2048] White is pushing.} Rh6 {[%emt 0:00:32]} 22. g3 {[%emt 0:05:14]} Bf6 {[%emt 0:00:01] [#]} (22... Qd8 $11 {remains equal.}) 23. Ng6 {[%emt 0:00:35] White is more active.} ({White should play} 23. Ne4 $1 $16 {[%cal Re4d6][%mdl 512]} dxe4 24. Nf5) 23... h4 $2 {[%emt 0:00:24]} ({Better is} 23... Bd8 $14) 24. gxh4 {[%emt 0:01:29] Qd1 is the strong threat.} Bxh4 $2 {[%emt 0:01:08]} (24... Bd7 $16) 25. Kg2 $18 {[%emt 0:00:57]} ({Worse is} 25. Ne5 Qe7 26. Kg2 (26. Nxc6 bxc6 27. Kg2 Kf7 $11) 26... Nxe5 27. fxe5 b6 $11) 25... Ne7 {[%emt 0:07:46]} 26. Ne5 {[%emt 0:00:33]} Nf5 {[%emt 0:00:42]} 27. Rh1 {[%emt 0:00:40]} (27. Nxg4 $18 Rg6 28. Kf3) 27... Bf6 $2 {[%emt 0:08:44] Black cannot hold the game after this.} (27... Qa6 $16 28. Kg1 Qe2) 28. Rxh6 {[%emt 0:03:56]} Nxh6 {[%emt 0:00:07]} 29. Qd3 {[%emt 0:00:44] aiming for Qh7+.} Nf5 {[%emt 0:00:37]} 30. Qe2 {[%emt 0:01:41]} Qf8 {[%emt 0:02:04]} 31. Rc7 {[%emt 0:03:19] Prevents Qg7.} ({Don't play} 31. Qxg4+ Qg7 32. Qxg7+ Bxg7 $18) 31... Bxe5 {[%emt 0:01:21]} 32. dxe5 {[%emt 0:01:15] Dancing on a razor blade.} Nh6 {[%emt 0:02:33]} (32... Qd8) 33. Nf1 {[%emt 0:01:43] White is clearly winning.} Qd8 {[%emt 0:00:44]} 34. Rh7 {[%emt 0:01:29]} Qh4 {[%emt 0:00:15]} 35. Qc2 {[%emt 0:00:34][%cal Oh7h8] White threatens Rh8+! and mate.} Qh3+ {[%emt 0:00:47]} 36. Kg1 {[%emt 0:00:08] Weighted Error Value: White=0.39/Black=0.61} 1-0

[Event "15th Paleochora Open 2022"]
[Site "Paleochora"]
[Date "2022.07.17"]
[Round "1.14"]
[White "Koudounis, Vasileios"]
[Black "Zwardon, Vojtech"]
[Result "1-0"]
[ECO "E04"]
[WhiteElo "2018"]
[BlackElo "2503"]
[Annotator "TA"]
[PlyCount "119"]
[EventDate "2022.07.17"]
[EventType "swiss"]
[EventCountry "GRE"]
[SourceTitle "playchess.com"]
[Source "ChessBase"]
[SourceQuality "1"]
[TimeControl "40/5400+30:900+30"]

{[%evp 11,118,0,0,-4,6,-21,66,22,22,26,26,33,23,0,5,14,43,4,6,10,14,0,0,0,0,0,45,-8,-8,-8,-7,0,27,31,41,0,0,0,51,37,75,50,136,0,213,202,195,201,434,434,430,422,420,327,329,80,80,88,83,76,139,18,24,0,0,0,0,0,0,0,0,0,0,0,398,373,2002,1961,968,888,29968,29971,12846,657,4590,1747,29984,29985,29986,29987,29986,29978,29978,29977,29977,29962,29957,29958,6735,5525,29983,29984,29987,29988,29997,29998,29998,29999,29999]} 1. d4 {[%emt 0:00:03]} Nf6 {[%emt 0:00:01]} 2. c4 {[%emt 0:00:12]} e6 {[%emt 0:00:03]} 3. g3 {[%emt 0:00:06]} d5 {[%emt 0:00:04]} 4. Nf3 {[%emt 0:00:08]} dxc4 {[%emt 0:00:12]} 5. Bg2 {[%emt 0:00:09]} c6 {[%emt 0:00:03]} 6. O-O {[%emt 0:04:09]} b5 {[%emt 0:00:39]} 7. Ne5 {[%emt 0:00:48] E04: Open Catalan: 5 Nf3.} Bb7 $1 {[%emt 0:00:24]} 8. a4 {[%emt 0:00:59][%cal Ba2a4,Ba4a5][%mdl 32]} Qb6 {[%emt 0:05:24]} (8... a6 $11) 9. a5 {[%emt 0:12:37] White is slightly better.} Qa6 {[%emt 0:02:40]} 10. b3 $1 {[%emt 0:02:43]} cxb3 {[%emt 0:01:10]} 11. Qxb3 {[%emt 0:05:46]} Nbd7 {[%emt 0:16:46] [#]} 12. Nxd7 $146 {[%emt 0:13:45]} ({Predecessor:} 12. Ba3 c5 13. Nxd7 Nxd7 14. Bxb7 Qxb7 15. dxc5 Nxc5 16. Qe3 b4 17. Bb2 Qe4 18. Qxe4 Nxe4 {0-1 (58) Raposio,R-Stawski,N (2045) Canberra 1999}) 12... Nxd7 {[%emt 0:00:04]} 13. Nc3 {[%emt 0:00:40][%cal Bb1c3,Bc3a2,Ba2b4,Bb4d3,Bd3c5][%mdl 32]} b4 {[%emt 0:01:54] Against Ba3} 14. Na2 {[%emt 0:07:24]} c5 {[%emt 0:00:58]} (14... Qxe2 15. Nxb4 Rc8 16. a6 $16) 15. Bxb7 {[%emt 0:01:50]} Qxb7 {[%emt 0:00:04]} 16. dxc5 {[%emt 0:00:07]} Bxc5 {[%emt 0:01:43]} 17. Rb1 {[%emt 0:02:55][%cal Ra2b4]} Qb5 {[%emt 0:03:11]} 18. Nxb4 {[%emt 0:03:25]} Qxe2 {[%emt 0:09:39]} 19. Qd3 {[%emt 0:08:35]} (19. Qa4 $14) 19... Qxd3 $11 {[%emt 0:01:54]} 20. Nxd3 {[%emt 0:00:02]} Bd6 {[%emt 0:02:12]} 21. Rb7 {[%emt 0:07:18]} a6 {[%emt 0:06:09]} (21... Ke7 $5 {[%cal Rh8b8]}) 22. Be3 {[%emt 0:05:16]} Nf6 {[%emt 0:01:18]} 23. Bc5 {[%emt 0:00:47]} Bxc5 {[%emt 0:06:39]} 24. Nxc5 {[%emt 0:00:01]} Nd5 {[%emt 0:02:03]} (24... O-O $11) 25. Nd7 $1 $14 {[%emt 0:02:40][%mdl 1024] White has compensation.} h5 {[%emt 0:07:39]} 26. Rc1 {[%emt 0:04:33] Hoping for Nb6.} h4 {[%emt 0:01:54]} (26... Nf6 $14 27. Nxf6+ gxf6) 27. Kg2 {[%emt 0:00:08] White is much more active.} (27. Nb6 $1 $16 {[%cal Rb6a8]} Rd8 28. Nxd5 exd5 29. Re1+ Kf8 30. Ree7) 27... Rh5 $2 {[%emt 0:01:19] [#]} (27... Rd8 $11) 28. Nb8 $1 $18 {[%emt 0:04:21][%cal Rc1c8]} h3+ {[%emt 0:01:40]} 29. Kf1 {[%emt 0:01:27][%cal Rc1c8]} Rxb8 {[%emt 0:02:15]} (29... Ne7 {keeps fighting.}) 30. Rxb8+ {[%emt 0:00:02][%mdl 4096] Endgame KRR-KRN} Ke7 {[%emt 0:00:07]} 31. Rc6 {[%emt 0:01:49]} Rf5 {[%emt 0:00:11]} 32. Ke2 {[%emt 0:02:41] Inhibits Ne3.} Re5+ {[%emt 0:01:52]} 33. Kf3 $2 {[%emt 0:00:28]} (33. Kd3 $18 {and White stays clearly on top.}) 33... Rf5+ $16 {[%emt 0:00:07]} 34. Kg4 {[%emt 0:00:23] aiming for Rb7+.} Rxf2 {[%emt 0:00:10]} 35. Kxh3 {[%emt 0:00:05]} f5 {[%emt 0:02:06] [#]} ({Better is} 35... g5) 36. Kh4 {[%emt 0:06:14]} (36. Rxa6 $6 g5 $14) ({White should play} 36. g4 $1 $16 {[%cal Rg4g5]}) 36... Kf6 $11 {[%emt 0:03:46][%cal Rf2h2]} (36... Rxh2+ $2 37. Kg5 Kd7 38. Rxa6 $18) 37. h3 {[%emt 0:01:39]} g5+ {[%emt 0:01:17]} 38. Kh5 {[%emt 0:00:01] Rh8 is the strong threat.} Rh2 {[%emt 0:01:17][%cal Rh2h3]} 39. Rf8+ {[%emt 0:00:12]} Ke7 {[%emt 0:01:36]} 40. Ra8 {[%emt 0:00:00]} Kf6 $1 {[%emt 0:00:00][%cal Rh2h3]} ({Resist} 40... Rxh3+ 41. Kg6 Kd7 42. Rcxa6 $16) 41. Rf8+ {[%emt 0:01:51]} Ke7 {[%emt 0:05:26]} 42. Rb8 {[%emt 0:00:22] Black must now prevent Kg6.} Rxh3+ $2 {[%emt 0:01:21][%mdl 8192] Black is on the road to losing.} (42... Kf6 $1 $11 {and Black has nothing to worry.} 43. Rf8+) 43. Kg6 $18 {[%emt 0:01:19]} Rxg3 $2 {[%emt 0:07:51]} (43... Kd7 44. Rxa6 Kc7) 44. Rb7+ {[%emt 0:00:37]} Kd8 {[%emt 0:00:06]} 45. Rxa6 {[%emt 0:00:34][%cal Ra6a8]} Kc8 {[%emt 0:00:55]} 46. Rh7 {[%emt 0:01:54][%cal Ra6a8]} Kb8 {[%emt 0:00:08]} 47. Rd6 {[%emt 0:00:53]} (47. Raa7 $142 Rb3 48. Rag7) 47... Nf4+ {[%emt 0:00:15]} 48. Kf6 {[%emt 0:00:34][%cal Rd6d8]} Rd3 {[%emt 0:00:02]} 49. Rb6+ {[%emt 0:00:53]} Ka8 {[%emt 0:00:04]} 50. Rbb7 {[%emt 0:01:20]} Nd5+ {[%emt 0:01:44]} 51. Kxe6 {[%emt 0:00:52]} Nf4+ {[%emt 0:00:04]} 52. Kf6 {[%emt 0:00:39]} Rd6+ {[%emt 0:00:38]} 53. Kxg5 {[%emt 0:00:22]} Ne6+ {[%emt 0:00:13]} 54. Kxf5 {[%emt 0:01:21]} Rd5+ {[%emt 0:01:34]} 55. Kg4 {[%emt 0:06:10] Threatening mate with Ra7+.} ({Stronger than} 55. Kxe6 Re5+ 56. Kf7 Rf5+ 57. Ke8 Rf8+ 58. Ke7 Re8+ 59. Kf7 Rf8+ 60. Kg6 Rf6+ 61. Kg7 Rg6+ 62. Kf8 Rg8+ 63. Kf7 Rf8+ 64. Kg7 Rg8+ 65. Kf7 (65. Kf6 Rg6+ 66. Kf5 Rf6+ 67. Ke4 Re6+ 68. Kf3 Rf6+ 69. Kg2 Rg6+ 70. Kf2 Rf6+ 71. Kg3 Rg6+ 72. Kf3 Rg3+ 73. Kf2 Rg2+ 74. Kf3 Rg3+ 75. Kf4 Rf3+ 76. Kxf3 $11) 65... Rf8+ $11) 55... Nd8 {[%emt 0:06:16]} 56. Rbc7 {[%emt 0:02:29][%cal Rc7c8] White mates.} Nb7 {[%emt 0:01:27]} 57. a6 {[%emt 0:00:02]} ({And not} 57. Rxb7 Rg5+ 58. Kf4 Rf5+ 59. Ke4 Re5+ 60. Kf4 Rf5+ 61. Kg4 Rg5+ 62. Kf4 Rf5+ $11) 57... Nd6 {[%emt 0:00:16]} 58. Rh8+ {[%emt 0:00:07]} Ne8 {[%emt 0:00:04]} 59. Rxe8+ {[%emt 0:00:07]} Rd8 {[%emt 0:00:03]} 60. Rxd8# {[%emt 0:00:01] Weighted Error Value: White=0.32/Black=0.61} 1-0

[Event "15th Paleochora Open 2022"]
[Site "Paleochora"]
[Date "2022.07.17"]
[Round "1.15"]
[White "Yankelevich, Lev"]
[Black "Luchi, Max"]
[Result "1-0"]
[ECO "E08"]
[WhiteElo "2496"]
[BlackElo "2014"]
[Annotator "TA"]
[PlyCount "51"]
[EventDate "2022.07.17"]
[EventType "swiss"]
[EventCountry "GRE"]
[SourceTitle "playchess.com"]
[Source "ChessBase"]
[SourceQuality "1"]
[TimeControl "40/5400+30:900+30"]

{[%evp 17,51,0,28,21,27,13,22,10,78,22,64,65,67,56,164,197,218,206,233,245,268,262,697,358,1269,1235,29986,29987,29989,29990,29994,29995,29996,29997,29997,632]} 1. Nf3 {[%emt 0:00:12]} Nf6 {[%emt 0:00:07]} 2. c4 {[%emt 0:00:25]} e6 {[%emt 0:00:05]} 3. g3 {[%emt 0:00:19]} d5 {[%emt 0:00:16]} 4. d4 {[%emt 0:00:13]} Bb4+ {[%emt 0:00:12]} 5. Bd2 {[%emt 0:00:06]} Be7 {[%emt 0:00:05]} 6. Bg2 {[%emt 0:00:04]} O-O {[%emt 0:00:06]} 7. O-O {[%emt 0:00:04]} Nbd7 {[%emt 0:00:03]} 8. Qc2 {[%emt 0:00:40]} c6 {[%emt 0:00:19]} 9. Bf4 {[%emt 0:00:25]} a5 {[%emt 0:00:04]} 10. Rd1 {[%emt 0:00:15] E08: Closed Catalan: Main Line: 7 Qc2.} a4 {[%emt 0:00:15]} 11. Ne5 {[%emt 0:07:15] 11.a3 is the hot move.} Qa5 {[%emt 0:01:59]} 12. Nc3 {[%emt 0:02:29] The position is equal.} Qa6 {[%emt 0:27:49] [#]} (12... Nxe5 $11 {keeps the balance.} 13. dxe5 Nd7) 13. cxd5 $146 {[%emt 0:16:58] White is much more active. The black rooks are badly placed.} (13. c5 $16) ({Predecessor:} 13. Rac1 dxc4 14. Ne4 a3 15. Nxc4 axb2 16. Rb1 Qa4 17. Rxb2 Qxc2 18. Rxc2 Nxe4 19. Bxe4 {½-½ (61) Beliavsky,A (2605)-Eingorn,V (2550) Leningrad 1990}) 13... cxd5 {[%emt 0:00:52]} 14. Rac1 {[%emt 0:05:08]} h6 {[%emt 0:15:56]} 15. a3 {[%emt 0:00:37]} g5 {[%emt 0:12:47] [#]} (15... Nh5 $14) 16. Be3 $1 $18 {[%emt 0:01:54]} Nxe5 {[%emt 0:09:10]} 17. dxe5 {[%emt 0:00:06]} Nd7 {[%emt 0:00:06]} 18. Bd4 {[%emt 0:00:24]} Nc5 {[%emt 0:03:28]} 19. Bxd5 {[%emt 0:02:49]} ({Not} 19. Nxd5 exd5 20. Bxc5 Bxc5 $16) 19... Rd8 $2 {[%emt 0:04:42]} (19... exd5 $2 20. Bxc5 Bxc5 21. Nxd5 $18) (19... Nb3) 20. Ba2 {[%emt 0:02:59] Black must now prevent Bxc5.} Rxd4 {[%emt 0:05:57]} (20... Nd7 21. e3 Nf8) 21. Rxd4 {[%emt 0:00:06] Bb1 would kill now.} b6 {[%emt 0:00:11]} 22. Bb1 {[%emt 0:00:38] White mates.} Kf8 {[%emt 0:01:07]} 23. Qh7 {[%emt 0:00:28][%cal Rh7h8]} Ke8 {[%emt 0:00:02] [#]} 24. Bg6 $1 {[%emt 0:01:22]} fxg6 {[%emt 0:00:21]} (24... Bd7 25. Qg8+) 25. Qg8+ {[%emt 0:00:04]} Bf8 {[%emt 0:00:04]} 26. Qxg6+ {[%emt 0:00:04] White took control after the opening.  Weighted Error Value: White=0.33/Black=0.79} 1-0

[Event "15th Paleochora Open 2022"]
[Site "Paleochora"]
[Date "2022.07.17"]
[Round "1.16"]
[White "Triantafilidis, Mihail"]
[Black "Hamitevici, Vladimir"]
[Result "0-1"]
[ECO "D02"]
[WhiteElo "1991"]
[BlackElo "2473"]
[Annotator "TA"]
[PlyCount "74"]
[EventDate "2022.07.17"]
[EventType "swiss"]
[EventCountry "GRE"]
[SourceTitle "playchess.com"]
[Source "ChessBase"]
[SourceQuality "1"]
[TimeControl "40/5400+30:900+30"]

{[%evp 9,74,33,47,23,27,17,33,13,10,11,22,16,50,10,5,5,22,0,0,0,0,0,0,0,0,0,0,0,0,-13,-22,-28,-10,-12,-10,-13,-13,-14,0,0,0,0,13,12,12,2,41,21,47,-20,-18,-226,-215,-774,52,-731,-721,-930,-861,-29985,-29986,-29986,-29987,-29987,-29988,-29995,-576]} 1. Nf3 {[%emt 0:00:04]} d5 {[%emt 0:07:52]} 2. g3 {[%emt 0:00:29]} Nd7 {[%emt 0:01:32]} 3. d4 {[%emt 0:01:04]} Ngf6 {[%emt 0:00:57]} 4. Bg2 {[%emt 0:02:29]} Nb6 {[%emt 0:01:41]} 5. O-O {[%emt 0:02:34]} Bf5 {[%emt 0:00:45]} 6. Nbd2 {[%emt 0:02:58] D02: 1 d4 d5 2 Nf3 sidelines, including 2...Nf6 3 g3 and 2...Nf6 3 Bf4.} h6 {[%emt 0:03:00]} 7. c4 {[%emt 0:07:21]} e6 {[%emt 0:01:27]} ({Don't take} 7... Nxc4 8. Nxc4 dxc4 9. Ne5 $16) 8. b3 {[%emt 0:02:55] White is slightly better.} Be7 {[%emt 0:07:05]} 9. Bb2 {[%emt 0:05:24]} O-O {[%emt 0:04:23]} 10. Ne5 {[%emt 0:00:39] [#]} c5 $146 {[%emt 0:05:00]} ({Predecessor:} 10... c6 11. a3 Qc7 12. e3 Rad8 13. b4 Nxc4 14. Ndxc4 dxc4 15. Nxc4 Be4 16. f3 Bh7 {½-½ (23) Radzhabov,R (2381)-Bezgodov,A (2456) Cheliabinsk 2020}) 11. Rc1 {[%emt 0:03:50] Threatening cxd5.} cxd4 $1 {[%emt 0:03:12]} 12. cxd5 {[%emt 0:03:02]} Nbxd5 {[%emt 0:01:11][%cal Od5c3]} 13. Bxd4 {[%emt 0:11:07]} (13. Ndc4 $5 {[%cal Rd1d4]}) 13... Nf4 {[%emt 0:06:20]} 14. gxf4 {[%emt 0:04:34]} Qxd4 {[%emt 0:00:06]} 15. e3 {[%emt 0:00:07]} Qb4 {[%emt 0:01:04]} 16. Rc7 {[%emt 0:10:20]} Nd5 {[%emt 0:05:15]} 17. a3 {[%emt 0:01:49]} Qb6 {[%emt 0:10:26]} 18. Rd7 {[%emt 0:01:38]} Rfd8 $1 {[%emt 0:08:05]} 19. Bxd5 {[%emt 0:21:41]} Rxd7 {[%emt 0:01:21]} 20. Nxd7 {[%emt 0:00:08]} Qc7 {[%emt 0:00:38]} 21. Ne5 {[%emt 0:07:04] [#] aiming for Be4.} exd5 {[%emt 0:00:17]} 22. Qh5 {[%emt 0:00:07][%csl LRf5,LRf7]} g6 {[%emt 0:03:53]} 23. Qxh6 {[%emt 0:00:07]} Bxa3 {[%emt 0:00:39]} 24. Ndf3 {[%emt 0:01:38] Hoping for Ng5.} Bf8 {[%emt 0:01:15] A strong pair of Bishops.} 25. Qh4 {[%emt 0:00:27]} Qe7 {[%emt 0:01:56]} 26. Qg3 $1 {[%emt 0:00:19]} Bg7 {[%emt 0:01:09]} 27. Nd4 {[%emt 0:00:44]} Qf6 {[%emt 0:05:05]} 28. Rd1 {[%emt 0:05:19]} Rc8 {[%emt 0:01:41][%cal Ba8c8,Bc8c1,Bc1g1][%mdl 32]} 29. Nxf5 {[%emt 0:00:52]} (29. h4 $14) 29... Qxf5 $11 {[%emt 0:00:11]} 30. Rxd5 $2 {[%emt 0:00:13]} (30. h3 $11 {and White stays safe.}) 30... Bxe5 $19 {[%emt 0:03:38]} 31. Rxe5 $2 $14 {[%emt 0:00:17][%mdl 4096] Endgame KQR-KQR} (31. Qf3 Qb1+ 32. Rd1) 31... Rc1+ $19 {[%emt 0:01:54]} 32. Kg2 {[%emt 0:00:04] [#]} Qb1 {[%emt 0:00:58] And now ...Rg1+ would win.} ({Not} 32... Qd3 33. f5 Qf1+ 34. Kf3 Qd1+ 35. Kg2 Qf1+ 36. Kf3 Qd1+ 37. Kg2 Qf1+ $14) 33. Re8+ {[%emt 0:04:13]} Kg7 {[%emt 0:00:07] ( -> ...Rg1+)} 34. Qh4 {[%emt 0:00:07]} Rg1+ {[%emt 0:00:19] Black mates.} 35. Kf3 {[%emt 0:00:04]} Qd1+ {[%emt 0:00:26]} 36. Ke4 {[%emt 0:00:02]} Qc2+ {[%emt 0:01:18]} 37. Ke5 {[%emt 0:00:01]} Qc5+ {[%emt 0:00:19] Weighted Error Value: White=0.66/Black=0.05 (flawless)} (37... Qc3+ $142 38. Ke4 f5+ 39. Kd5 Rd1+ 40. Ke6 Qc6+ 41. Ke7 Qe4#) 0-1

[Event "15th Paleochora Open 2022"]
[Site "Paleochora"]
[Date "2022.07.17"]
[Round "1.17"]
[White "Leniart, Arkadiusz"]
[Black "Androni, Konstantina"]
[Result "1-0"]
[ECO "B70"]
[WhiteElo "2473"]
[BlackElo "1982"]
[Annotator "TA"]
[PlyCount "85"]
[EventDate "2022.07.17"]
[EventType "swiss"]
[EventCountry "GRE"]
[SourceTitle "playchess.com"]
[Source "ChessBase"]
[SourceQuality "1"]
[TimeControl "40/5400+30:900+30"]

{[%evp 21,85,25,44,31,52,58,69,19,54,33,34,26,28,27,22,26,18,14,12,6,9,10,18,22,22,19,15,10,52,52,146,10,8,4,4,6,6,2,7,0,48,45,112,64,179,54,178,168,344,333,301,329,601,569,666,657,641,596,579,554,490,469,29965,7799,5616,4943]} 1. e4 {[%emt 0:00:09]} c5 {[%emt 0:00:10]} 2. Nf3 {[%emt 0:00:05]} d6 {[%emt 0:00:06]} 3. d4 {[%emt 0:00:03]} cxd4 {[%emt 0:00:07]} 4. Nxd4 {[%emt 0:00:03]} Nf6 {[%emt 0:00:08]} 5. Nc3 {[%emt 0:00:30]} g6 {[%emt 0:00:08]} 6. g3 {[%emt 0:00:00]} Bg7 {[%emt 0:01:09]} 7. Bg2 {[%emt 0:00:00]} O-O {[%emt 0:00:08]} 8. O-O {[%emt 0:00:18]} Nc6 {[%emt 0:07:32][%cal Bb8c6,Bc6e5,Be5f3][%mdl 32]} 9. Nde2 {[%emt 0:00:30]} Bd7 {[%emt 0:03:30]} 10. h3 {[%emt 0:01:13]} Rc8 {[%emt 0:02:45] 10...Rb8 is more fashionable.} 11. Be3 {[%emt 0:02:03]} Qa5 {[%emt 0:08:36]} 12. Nd5 {[%emt 0:05:25] B70: Sicilian Dragon: 6 g3 and 6 Be2 (without a later Be3).} Nxd5 {[%emt 0:02:07]} 13. exd5 {[%emt 0:00:05]} Ne5 {[%emt 0:00:30]} 14. Bd4 {[%emt 0:04:48] [#]} (14. b3 $14) 14... Bxh3 $146 {[%emt 0:24:45]} ({Predecessor:} 14... Bf5 15. c3 Qb5 16. b3 Nd7 17. c4 Qa5 18. Bxg7 Kxg7 19. g4 Bxg4 20. hxg4 Ne5 {1-0 (57) Micheli,E (1359)-Schippke,M (1646) Hyeres 2019}) 15. Bxh3 {[%emt 0:04:30]} Nf3+ {[%emt 0:00:03]} 16. Kh1 {[%emt 0:04:56] Threatens to win with Bxg7.} Nxd4 {[%emt 0:01:49]} 17. Nxd4 {[%emt 0:01:21][%cal Be2d4,Bd4f3,Bf3d2,Bd2e4][%mdl 32]} Qxd5+ {[%emt 0:00:07]} 18. Nf3 {[%emt 0:08:13]} Qxd1 {[%emt 0:00:08]} 19. Rfxd1 {[%emt 0:00:06]} Rxc2 {[%emt 0:01:21]} 20. Rd2 {[%emt 0:00:06]} Rxd2 {[%emt 0:05:13]} ({Resist} 20... Rxb2 21. Rxb2 Bxb2 22. Rb1 $16) 21. Nxd2 {[%emt 0:00:08]} e6 {[%emt 0:03:07]} 22. Rc1 {[%emt 0:01:50] Inhibits Rc8.} Bxb2 {[%emt 0:04:11]} 23. Rb1 {[%emt 0:03:14]} Bd4 {[%emt 0:00:09]} 24. Rxb7 {[%emt 0:00:40]} Bxf2 {[%emt 0:05:36]} 25. Ne4 {[%emt 0:00:16][%csl LRd6,LRf2]} Bb6 {[%emt 0:01:35]} (25... Be3 $1 $14) 26. Nf6+ {[%emt 0:05:25]} (26. Ng5 $1 $16) 26... Kg7 $11 {[%emt 0:05:31]} 27. Nd7 {[%emt 0:00:16]} Re8 {[%emt 0:01:12]} 28. Nxb6 {[%emt 0:01:03]} axb6 {[%emt 0:00:02][%mdl 4096] Endgame KRB-KR} 29. a4 {[%emt 0:00:41]} d5 {[%emt 0:03:03]} 30. Bf1 {[%emt 0:00:17]} e5 {[%emt 0:04:09]} (30... Rc8 $11) 31. Rxb6 $14 {[%emt 0:00:39] Strongly threatening a5.} e4 {[%emt 0:00:36]} (31... Ra8 $14) 32. a5 {[%emt 0:07:47]} (32. Bb5 $1 $16 {[%cal Rb5e8]} Rd8 33. Rb7) 32... Rc8 {[%emt 0:07:56]} (32... d4 $14) 33. Rb1 {[%emt 0:02:01]} (33. a6 $18 {a7 is the strong threat.} Rc1 34. Kg2) 33... Kf6 {[%emt 0:04:01] [#] Loses the game.} (33... d4 $1 $14) 34. a6 $1 $18 {[%emt 0:00:08]} Rc7 $2 {[%emt 0:03:04]} (34... Ra8 35. Rb7 Ke6) 35. Ra1 {[%emt 0:00:26] And now a7 would win.} Ra7 {[%emt 0:00:11]} 36. Bb5 {[%emt 0:00:05] Hoping for Bc6.} Ke5 $2 {[%emt 0:01:56] [#]} (36... Ke6 37. Bc6 f5) 37. Bc6 $1 {[%emt 0:00:06]} e3 {[%emt 0:01:03]} 38. Kg2 {[%emt 0:00:31]} d4 {[%emt 0:00:56]} 39. Kf3 {[%emt 0:00:22]} f5 {[%emt 0:00:26]} 40. Ra5+ {[%emt 0:00:00]} Kd6 {[%emt 0:00:00]} 41. Bb7 {[%emt 0:00:26]} f4 {[%emt 0:02:58]} (41... Ke6 $18 42. Ke2 g5) 42. gxf4 {[%emt 0:00:25]} (42. Rd5+ $142 Ke7 43. gxf4 h5 44. Rxd4 Kf6 45. Rd8 e2 46. Kxe2 Kf5 47. Ke3) 42... h5 {[%emt 0:00:11]} 43. Rd5+ {[%emt 0:00:18] Weighted Error Value: White=0.17 (very precise) /Black=0.73} 1-0